bitfinex/quotes_SOLUSD_20251030
["timestamp","ask_amount","ask_price","bid_price","bid_amount"]
[1761862331486,4.77473049,182.52,182.51,0.2]
[1761862331708,10.25358212,182.52,182.51,0.2]
[1761862339033,16.15545352,182.52,182.51,0.2]
[1761862340928,19.85340878,182.52,182.51,0.2]
[1761862344929,16.15545352,182.52,182.51,0.2]
[1761862346034,20.592,182.49,182.46,1e-08]
[1761862346216,4.10473049,182.48,182.46,1e-08]
[1761862346414,6.18313025,182.47,182.46,2.19774183]
[1761862346622,6.87313025,182.47,182.46,2.19774183]
[1761862347221,12.35348318,182.47,182.46,2.19774183]
[1761862348225,11.66348318,182.47,182.46,2.19774183]
[1761862349848,12.35348318,182.47,182.46,2.19774183]
[1761862351744,9.58508342,182.47,182.46,2.19774183]
[1761862352559,10.27508342,182.47,182.46,2.19774183]
[1761862352926,12.35348318,182.47,182.46,2.19774183]
[1761862353626,12.35348318,182.47,182.46,1e-08]
[1761862353828,9.78882769,182.46,182.45,2.39786257]
[1761862354037,20.40285643,182.46,182.45,2.39786257]
[1761862354632,7.84562898,182.46,182.45,0.2]
[1761862354848,6.87313025,182.46,182.45,2.59786257]
[1761862355053,4.10473049,182.46,182.45,0.2]
[1761862355264,4.10473049,182.46,182.45,2.27839976]
[1761862355957,9.58538378,182.46,182.45,0.2]
[1761862356332,4.10473049,182.46,182.45,2.27839976]
[1761862356531,4.10473049,182.46,182.45,4.87626233]
[1761862359759,29.47265792,182.52,182.45,4.87626233]
[1761862359760,19.17705898,182.51,182.45,4.87626233]
[1761862360059,4.09320659,182.5,182.47,2.07839976]
[1761862360236,4.09320659,182.5,182.45,0.2]
[1761862360237,4.09320659,182.49,182.46,2.07839976]
[1761862360438,4.09320659,182.48,182.46,7.55941466]
[1761862360638,4.09320659,182.47,182.46,7.55941466]
[1761862360856,4.09320659,182.47,182.46,2.07839976]
[1761862361164,4.09320659,182.47,182.46,18.55874694]
[1761862361866,10.26355952,182.47,182.46,16.48034718]
[1761862362066,10.26355952,182.47,182.45,0.2]
[1761862362370,4.09320659,182.46,182.45,5.68025577]
[1761862362533,4.78320659,182.46,182.45,5.68025577]
[1761862363263,10.26385988,182.46,182.45,5.68025577]
[1761862363872,9.57385988,182.46,182.45,5.68025577]
[1761862364246,4.09320659,182.46,182.45,7.75865553]
[1761862364446,0.69,182.53,182.45,13.23960921]
[1761862364653,4.09448945,182.52,182.49,2.07839976]
[1761862364845,4.09448945,182.51,182.45,5.68095368]
[1761862365163,4.09448945,182.5,182.45,5.68095368]
[1761862365350,0.69,182.54,182.46,5.47855147]
[1761862365351,5.47861557,182.53,182.46,5.47855147]
[1761862365537,4.09443648,182.52,182.46,5.47855147]
[1761862365739,4.09443648,182.51,182.46,5.47855147]
[1761862366042,6.16861557,182.53,182.5,2.07839976]
[1761862366240,4.09422299,182.52,182.51,2.07839976]
[1761862366562,9.57307462,182.52,182.51,2.07839976]
[1761862366752,9.57307462,182.52,182.51,15.77332918]
[1761862366956,10.26307462,182.52,182.51,13.69492942]
[1761862371364,9.57307462,182.52,182.51,15.77332918]
[1761862371870,10.26307462,182.52,182.51,15.77332918]
[1761862374465,10.26307462,182.52,182.51,13.69492942]
[1761862375048,6.16885163,182.52,182.51,13.69492942]
[1761862375272,10.26544074,182.52,182.51,13.69492942]
[1761862375849,10.26544074,182.52,182.51,15.77332918]
[1761862376349,9.57544074,182.52,182.51,15.77332918]
[1761862376570,4.09658911,182.52,182.51,21.252481]
[1761862376872,5.4771204,182.58,182.51,85.03088076]
[1761862377054,4.09626739,182.57,182.52,2.07839976]
[1761862377256,4.09626739,182.56,182.52,2.07839976]
[1761862377449,4.09626739,182.55,182.53,5.4771204]
[1761862377658,4.09626739,182.54,182.53,5.4771204]
[1761862378272,4.09626739,182.54,182.53,13.03407163]
[1761862378464,5.47678752,182.59,182.53,13.03407163]
[1761862378668,5.47678752,182.59,182.58,2.07839976]
[1761862378882,4.09415114,182.59,182.58,2.07839976]
[1761862379067,4.78415114,182.59,182.58,18.54969852]
[1761862379372,10.26090233,182.59,182.58,18.54969852]
[1761862380278,10.26090233,182.59,182.58,16.47129876]
[1761862380767,9.57090233,182.59,182.58,16.47129876]
[1761862381377,10.26090233,182.59,182.58,16.47129876]
[1761862383278,4.78415114,182.59,182.58,16.47129876]
[1761862383484,10.26090233,182.59,182.58,16.47129876]
[1761862383861,9.57090233,182.59,182.58,16.47129876]
[1761862384467,10.26090233,182.59,182.58,16.47129876]
[1761862384781,4.09415114,182.59,182.58,21.94834991]
[1761862385088,5.47512366,182.65,182.58,106.31874967]
[1761862385385,4.08525267,182.64,182.63,2.07839976]
[1761862385594,4.08525267,182.64,182.63,22.67039976]
[1761862385758,0.79,182.71,182.63,22.67039976]
[1761862385959,0.79,182.71,182.63,25.18551011]
[1761862385960,4.08391287,182.7,182.63,25.18551011]
[1761862386179,4.08391287,182.69,182.64,2.07839976]
[1761862386377,4.08391287,182.68,182.64,2.07839976]
[1761862386688,4.08391287,182.67,182.64,2.07839976]
[1761862386877,19.25606394,182.71,182.65,2.07839976]
[1761862386878,4.08391287,182.66,182.65,2.07839976]
[1761862387061,5.47435265,182.67,182.65,2.07839976]
[1761862387779,0.69,182.69,182.65,2.07839976]
[1761862387780,5.47406686,182.68,182.65,2.07839976]
[1761862387997,5.47406686,182.68,182.66,15.8612852]
[1761862388186,6.16406686,182.68,182.66,15.8612852]
[1761862388485,0.69,182.68,182.66,15.8612852]
[1761862388685,4.76389918,182.68,182.66,15.8612852]
[1761862389363,10.23825145,182.68,182.66,15.8612852]
[1761862389590,6.16435227,182.68,182.66,15.8612852]
[1761862390176,5.47435227,182.68,182.66,13.78288544]
[1761862390376,4.75975325,182.67,182.61,2.07839976]
[1761862390680,4.06975325,182.66,182.65,13.68439125]
[1761862390883,9.78882769,182.65,182.54,5.47824087]
[1761862391184,6.14815301,182.64,182.59,13.68439125]
[1761862391478,4.06975325,182.63,182.59,13.68439125]
[1761862391680,5.47585149,182.62,182.59,13.68439125]
[1761862391887,19.85548022,182.62,182.59,13.68439125]
[1761862392058,0.69,182.61,182.59,13.68439125]
[1761862392764,0.69,182.61,182.54,2.07839976]
[1761862392765,6.8387522,182.61,182.54,2.07839976]
[1761862392992,2.76839976,182.61,182.54,2.07839976]
[1761862393280,0.69,182.6,182.54,3.24571247]
[1761862393800,19.16862916,182.59,182.56,16.47220315]
[1761862394168,0.69,182.58,182.56,16.47220315]
[1761862394768,5.47735115,182.57,182.56,16.47220315]
[1761862394963,6.16735115,182.57,182.56,16.47220315]
[1761862396389,5.47735115,182.57,182.56,16.47220315]
[1761862396894,5.47705115,182.58,182.56,16.47220315]
[1761862397263,6.14682705,182.59,182.56,16.47220315]
[1761862397463,0.67,182.58,182.56,16.47220315]
[1761862399075,5.47735115,182.57,182.56,16.47220315]
[1761862400473,6.14735115,182.57,182.56,16.47220315]
[1761862402187,5.47735115,182.57,182.56,16.47220315]
[1761862403309,5.47705115,182.58,182.54,3.24571247]
[1761862403484,6.14705115,182.58,182.54,3.24571247]
[1761862404411,6.14705115,182.58,182.53,14.36187797]
[1761862404412,0.67,182.57,182.53,17.60759044]
[1761862404581,0.67,182.57,182.54,3.24571247]
[1761862405197,4.75057228,182.57,182.54,3.24571247]
[1761862405516,5.47765118,182.56,182.54,3.24571247]
[1761862406102,5.47705115,182.58,182.54,3.24571247]
[1761862406274,4.08096045,182.57,182.54,3.24571247]
[1761862406475,5.47705115,182.58,182.54,3.24571247]
[1761862406772,4.08145133,182.57,182.54,3.24571247]
[1761862406975,6.14705115,182.58,182.54,3.24571247]
[1761862407176,4.08145173,182.57,182.54,3.24571247]
[1761862407488,6.14705115,182.58,182.54,3.24571247]
[1761862407690,9.56061804,182.57,182.54,3.24571247]
[1761862407900,5.47744376,182.57,182.54,3.24571247]
[1761862409270,4.08723696,182.56,182.54,3.24571247]
[1761862409507,0.66,182.57,182.54,3.24571247]
[1761862410397,5.47765118,182.56,182.54,3.24571247]
[1761862411604,0.66,182.55,182.5,61.7]
[1761862411775,3.24571247,182.57,182.53,3.24571247]
[1761862411776,4.08893528,182.54,182.53,3.24571247]
[1761862411975,0.66,182.59,182.53,23.83771247]
[1761862412180,5.47735115,182.57,182.55,3.24571247]
[1761862412510,5.47735115,182.57,182.53,82.292]
[1761862412804,4.08891223,182.56,182.53,91.01506362]
[1761862412982,6.13735115,182.57,182.53,91.01506362]
[1761862413183,4.08905563,182.56,182.53,91.01506362]
[1761862413404,6.13735115,182.57,182.53,91.01506362]
[1761862413613,4.08952698,182.56,182.53,91.01506362]
[1761862413816,6.13735115,182.57,182.55,3.24571247]
[1761862413979,4.08952698,182.56,182.55,3.24571247]
[1761862414414,9.56717816,182.56,182.55,3.24571247]
[1761862414711,4.08952698,182.56,182.55,3.24571247]
[1761862414925,0.66,182.58,182.55,3.24571247]
[1761862415205,0.66,182.56,182.53,95.9845204]
[1761862415407,4.08999143,182.55,182.54,3.24571247]
[1761862415793,4.74999143,182.55,182.54,3.24571247]
[1761862416210,4.74999143,182.55,182.53,61.7]
[1761862416412,6.13813286,182.55,182.53,64.94571247]
[1761862417106,5.47813286,182.55,182.54,3.24571247]
[1761862417307,4.092089,182.55,182.54,64.94571247]
[1761862417710,5.47675119,182.59,182.54,78.63903596]
[1761862417909,4.09160157,182.58,182.57,3.24571247]
[1761862419695,4.09160157,182.58,182.57,85.53771247]
[1761862419900,5.47555166,182.63,182.57,91.01506362]
[1761862420097,4.09246348,182.62,182.57,87.76935115]
[1761862420317,4.09246348,182.61,182.6,20.592]
[1761862421293,4.09246348,182.61,182.6,23.83771247]
[1761862422311,4.09246348,182.61,182.6,37.5250366]
[1761862425314,4.09246348,182.61,182.6,16.9330366]
[1761862425509,4.75246348,182.61,182.6,3.24571247]
[1761862426017,4.09246348,182.61,182.6,3.24571247]
[1761862426597,13.68520292,182.68,182.63,20.592]
[1761862426598,0.66,182.68,182.63,20.592]
[1761862426815,4.09202124,182.67,182.64,20.592]
[1761862427009,4.09202124,182.66,182.65,5.47495209]
[1761862427206,5.57318802,182.71,182.65,5.47495209]
[1761862427399,4.08979436,182.7,182.65,5.47495209]
[1761862427601,4.08979436,182.69,182.65,5.47495209]
[1761862427804,4.08979436,182.68,182.67,20.592]
[1761862428006,4.08979436,182.68,182.67,23.83771247]
[1761862428729,5.57321322,182.71,182.67,23.83771247]
[1761862428927,4.08755595,182.7,182.67,23.83771247]
[1761862429103,0.76,182.71,182.69,3.24571247]
[1761862429305,4.0855486,182.7,182.67,20.592]
[1761862429501,4.0855486,182.69,182.67,20.592]
[1761862429816,6.23316396,182.71,182.67,20.592]
[1761862430011,4.08569139,182.7,182.67,20.592]
[1761862430323,0.76,182.71,182.69,3.24571247]
[1761862430545,4.08388952,182.7,182.67,20.592]
[1761862430714,6.23321303,182.71,182.67,20.592]
[1761862430908,4.08388952,182.7,182.67,20.592]
[1761862431110,0.1,182.71,182.68,20.592]
[1761862431617,0.1,182.71,182.68,34.37346649]
[1761862431813,0.1,182.71,182.7,3.24571247]
[1761862432412,0.1,182.71,182.7,8.81829265]
[1761862432606,4.84065894,182.71,182.7,8.81829265]
[1761862432812,4.84065894,182.71,182.7,5.57258018]
[1761862433129,0.1,182.71,182.7,8.81829265]
[1761862433633,0.1,182.71,182.7,5.57258018]
[1761862433806,4.17963953,182.71,182.7,3.24571247]
[1761862434236,4.17864882,182.71,182.7,3.24571247]
[1761862435419,0.1,182.71,182.7,3.24571247]
[1761862435622,4.17757534,182.71,182.7,3.24571247]
[1761862435926,0.1,182.71,182.7,3.24571247]
[1761862436631,6.23315417,182.71,182.7,3.24571247]
[1761862438233,6.23315417,182.71,182.68,95.97269896]
[1761862438434,0.66,182.7,182.68,95.97269896]
[1761862438618,0.66,182.7,182.69,3.24571247]
[1761862439637,5.57315417,182.71,182.69,3.24571247]
[1761862439845,6.24315417,182.71,182.69,3.24571247]
[1761862440135,5.57315417,182.71,182.69,3.24571247]
[1761862440335,5.57315417,182.71,182.68,61.7]
[1761862440336,6.14345374,182.7,182.68,61.7]
[1761862440518,6.14345374,182.7,182.61,16.93598669]
[1761862440519,0.67,182.69,182.67,3.24571247]
[1761862441343,0.67,182.69,182.65,13.68069896]
[1761862441344,0.67,182.69,182.64,3.24571247]
[1761862441639,4.74363675,182.69,182.64,3.24571247]
[1761862442016,0.67,182.68,182.64,3.24571247]
[1761862442417,5.47435265,182.67,182.64,3.24571247]
[1761862442725,14.35555062,182.68,182.66,3.24571247]
[1761862442726,6.14410847,182.68,182.66,3.24571247]
[1761862443135,5.47410847,182.68,182.66,3.24571247]
[1761862443318,5.47410847,182.68,182.67,3.24571247]
[1761862443514,6.14410847,182.68,182.67,3.24571247]
[1761862444323,6.14410847,182.68,182.66,3.24571247]
[1761862445634,5.47410847,182.68,182.66,3.24571247]
[1761862445839,0.67,182.67,182.65,3.24571247]
[1761862446011,0.67,182.67,182.63,16.46316367]
[1761862446215,0.67,182.67,182.64,3.24571247]
[1761862446415,5.47465235,182.66,182.63,19.70887614]
[1761862446934,6.14465235,182.66,182.64,3.24571247]
[1761862447335,0.67,182.65,182.64,3.24571247]
[1761862447737,5.47465235,182.66,182.64,3.24571247]
[1761862448023,6.14394949,182.69,182.65,3.24571247]
[1761862448223,6.14394949,182.69,182.66,3.24571247]
[1761862448452,0.67,182.68,182.65,3.24571247]
[1761862449239,6.14408379,182.68,182.65,3.24571247]
[1761862449625,0.67,182.67,182.65,3.24571247]
[1761862450049,5.47408379,182.68,182.66,3.24571247]
[1761862450347,6.14408379,182.68,182.66,3.24571247]
[1761862450521,0.67,182.67,182.66,3.24571247]
[1761862450942,5.47345374,182.7,182.66,23.83771247]
[1761862451142,6.24323655,182.71,182.69,3.24571247]
[1761862451455,0.77,182.71,182.7,3.24571247]
[1761862451920,0.1,182.71,182.7,3.24571247]
[1761862452243,0.1,182.71,182.7,23.83771247]
[1761862452446,0.1,182.71,182.7,29.98018187]
[1761862453438,0.1,182.71,182.7,28.8077786]
[1761862455934,0.77,182.71,182.7,28.8077786]
[1761862456339,0.77,182.71,182.63,71.48882769]
[1761862456340,6.24320769,182.71,182.63,71.48882769]
[1761862456548,6.24320769,182.71,182.68,2.0733092]
[1761862456549,19.92609313,182.71,182.68,2.0733092]
[1761862456850,5.57320769,182.71,182.69,2.0733092]
[1761862457037,6.29320769,182.71,182.69,2.0733092]
[1761862457236,6.29320769,182.71,182.7,2.0733092]
[1761862457237,5.57320769,182.71,182.7,2.0733092]
[1761862457437,9.65080565,182.71,182.7,2.0733092]
[1761862457649,10.37080565,182.71,182.7,2.0733092]
[1761862458951,10.37080565,182.71,182.69,2.0733092]
[1761862459251,0.72,182.7,182.69,2.0733092]
[1761862459655,6.19345374,182.7,182.69,2.0733092]
[1761862460152,10.27511641,182.7,182.66,2.0733092]
[1761862460334,4.80224639,182.69,182.66,2.0733092]
[1761862460652,0.72,182.69,182.66,2.0733092]
[1761862460849,0.72,182.68,182.66,2.0733092]
[1761862461448,4.80224873,182.68,182.66,2.0733092]
[1761862461651,4.80224873,182.68,182.65,5.47525174]
[1761862461652,0.72,182.68,182.67,2.0733092]
[1761862461850,4.80466791,182.68,182.67,2.0733092]
[1761862462554,4.08466791,182.68,182.67,2.0733092]
[1761862462931,0.72,182.68,182.67,7.54714883]
[1761862463953,0.72,182.69,182.67,7.54714883]
[1761862464139,0.72,182.69,182.68,2.0733092]
[1761862464337,0.1,182.71,182.68,2.0733092]
[1761862464338,5.57317662,182.71,182.68,2.0733092]
[1761862464638,5.57317662,182.71,182.7,2.0733092]
[1761862464639,0.1,182.71,182.7,2.0733092]
[1761862464957,4.19049975,182.71,182.7,2.0733092]
[1761862467046,4.91049975,182.71,182.7,2.0733092]
[1761862467347,10.38365392,182.71,182.7,2.0733092]
[1761862467555,4.91049975,182.71,182.7,2.0733092]
[1761862467756,4.19049975,182.71,182.7,2.0733092]
[1761862469567,0.1,182.71,182.7,7.54676294]
[1761862470165,0.1,182.71,182.7,2.0733092]
[1761862471050,4.19616777,182.71,182.7,2.0733092]
[1761862473169,4.19616777,182.71,182.7,7.64592394]
[1761862474764,4.19616777,182.71,182.7,69.34592394]
[1761862474956,0.1,182.71,182.7,69.34592394]
[1761862478559,0.1,182.71,182.7,83.11261448]
[1761862480478,0.1,182.71,182.7,74.81937768]
[1761862481655,4.19521175,182.71,182.7,74.81937768]
[1761862482471,0.1,182.71,182.7,74.81937768]
[1761862482672,4.19501665,182.71,182.7,74.81937768]
[1761862483589,4.19499785,182.71,182.7,74.81937768]
[1761862484272,4.19499785,182.71,182.7,67.27261474]
[1761862484581,0.1,182.71,182.7,83.11261448]
[1761862485057,0.1,182.73,182.72,20.592]
[1761862485262,0.1,182.73,182.72,84.3653092]
[1761862485768,0.1,182.73,182.72,86.55919374]
[1761862486952,0.1,182.73,182.72,92.03204838]
[1761862490690,0.81,182.73,182.72,86.55919374]
[1761862491201,0.1,182.73,182.72,86.55919374]
[1761862491403,0.1,182.73,182.72,92.03204838]
[1761862493269,0.1,182.73,182.72,101.82087607]
[1761862501009,0.81,182.73,182.72,86.55919374]
[1761862501300,4.90426298,182.73,182.72,65.96719374]
[1761862503116,0.81,182.73,182.72,65.96719374]
[1761862503494,0.81,182.73,182.72,63.89388454]
[1761862503495,6.28255513,182.73,182.72,63.89388454]
[1761862503697,12.45106256,182.73,182.62,5.47585149]
[1761862503903,4.80519823,182.72,182.65,2.0733092]
[1761862504214,4.80519823,182.72,182.64,2.0733092]
[1761862504215,2.0733092,182.7,182.64,2.0733092]
[1761862504389,4.80519823,182.69,182.63,12.45106256]
[1761862504597,4.09519823,182.68,182.63,14.52437176]
[1761862504793,4.09629229,182.67,182.63,12.45106256]
[1761862504992,4.09629229,182.67,182.59,9.78882769]
[1761862504993,4.09644914,182.66,182.64,2.0733092]
[1761862505200,4.09644914,182.66,182.63,2.0733092]
[1761862505201,0.71,182.66,182.63,2.0733092]
[1761862505402,0.71,182.65,182.63,2.0733092]
[1761862505909,0.71,182.65,182.62,39.12847287]
[1761862506093,6.18524718,182.65,182.62,22.6653092]
[1761862506294,6.18524718,182.65,182.63,4.09560563]
[1761862506490,0.71,182.64,182.63,4.09560563]
[1761862506709,4.09444923,182.66,182.63,6.16891483]
[1761862506897,4.80444923,182.66,182.65,2.0733092]
[1761862507104,5.47432033,182.68,182.65,2.0733092]
[1761862507416,4.09444923,182.67,182.65,2.0733092]
[1761862507617,4.09444923,182.66,182.65,2.0733092]
[1761862507819,4.80444923,182.66,182.65,2.0733092]
[1761862508018,0.71,182.66,182.65,2.0733092]
[1761862509019,6.18465235,182.66,182.65,2.0733092]
[1761862509310,6.18465235,182.66,182.64,2.0733092]
[1761862509513,0.71,182.65,182.64,2.0733092]
[1761862510517,0.71,182.65,182.64,7.54856106]
[1761862510716,13.6821856,182.72,182.64,7.54856106]
[1761862510717,5.47338855,182.71,182.64,7.54856106]
[1761862510925,0.71,182.71,182.7,2.0733092]
[1761862511095,4.80013638,182.71,182.7,2.0733092]
[1761862511601,0.71,182.71,182.7,7.54618765]
[1761862511785,4.80013638,182.71,182.7,7.54618765]
[1761862511996,0.71,182.71,182.7,7.54618765]
[1761862512205,10.27329055,182.71,182.7,5.47287845]
[1761862512404,10.27329055,182.71,182.64,82.292]
[1761862512604,4.80013638,182.7,182.67,2.0733092]
[1761862512795,4.80013638,182.7,182.66,2.0733092]
[1761862513009,0.71,182.69,182.66,2.0733092]
[1761862513395,5.47405298,182.68,182.66,3.24194059]
[1761862513608,0.71,182.69,182.67,3.24194059]
[1761862513811,0.71,182.69,182.68,3.24194059]
[1761862514609,0.71,182.69,182.65,19.1562437]
[1761862514809,0.71,182.69,182.68,3.24194059]
[1761862516428,0.71,182.69,182.68,64.94194059]
[1761862516728,0.71,182.72,182.68,64.94194059]
[1761862516924,0.71,182.72,182.71,3.24194059]
[1761862517429,0.1,182.73,182.72,26.06485464]
[1761862517925,0.1,182.73,182.72,29.30679523]
[1761862520008,0.1,182.75,182.73,9.78882769]
[1761862520213,0.1,182.76,182.75,20.592]
[1761862520431,0.1,182.76,182.75,23.83394059]
[1761862521504,0.1,182.76,182.75,29.30589681]
[1761862522114,0.81,182.76,182.75,20.592]
[1761862522317,0.81,182.76,182.75,23.83394059]
[1761862522923,0.81,182.76,182.75,91.00473763]
[1761862522924,0.1,182.76,182.75,91.00473763]
[1761862523121,0.1,182.76,182.75,96.47669385]
[1761862523834,0.1,182.76,182.75,106.26552154]
[1761862524209,0.1,182.76,182.75,106.91552154]
[1761862524414,0.1,182.76,182.75,106.26552154]
[1761862526134,0.1,182.76,182.75,87.76279704]
[1761862526321,0.81,182.76,182.75,70.41273763]
[1761862526829,0.81,182.76,182.75,5.47079704]
[1761862527052,0.81,182.76,182.75,8.71273763]
[1761862527215,0.1,182.76,182.75,34.77669385]
[1761862530541,0.1,182.76,182.75,96.47669385]
[1761862536446,0.1,182.76,182.75,97.14669385]
[1761862537044,0.1,182.76,182.75,96.47669385]
[1761862537821,0.66,182.79,182.75,96.47669385]
[1761862537822,0.66,182.81,182.78,20.592]
[1761862538024,0.66,182.83,182.8,3.24194059]
[1761862538335,0.66,182.83,182.82,3.24194059]
[1761862539026,0.66,182.83,182.82,5.43498316]
[1761862546737,0.66,182.83,182.82,67.13498316]
[1761862548353,0.76,182.84,182.82,72.60478472]
[1761862548524,0.1,182.84,182.83,3.24194059]
[1761862548725,0.1,182.84,182.83,8.71150247]
[1761862548935,0.1,182.84,182.83,10.9040642]
[1761862553850,0.1,182.84,182.83,72.6040642]
[1761862559243,0.79,182.84,182.83,72.6040642]
[1761862560154,0.1,182.84,182.83,72.6040642]
[1761862560671,0.79,182.84,182.83,72.6040642]
[1761862561047,0.1,182.84,182.83,72.6040642]
[1761862562639,0.1,182.85,182.83,83.08289189]
[1761862562857,0.1,182.85,182.84,3.93194059]
[1761862563164,0.1,182.85,182.84,64.94194059]
[1761862563358,0.79,182.85,182.84,63.89244155]
[1761862563653,0.79,182.85,182.84,67.13438214]
[1761862563860,0.1,182.85,182.84,67.13438214]
[1761862564357,0.1,182.85,182.84,72.60364488]
[1761862565937,0.79,182.85,182.84,63.89244155]
[1761862566137,0.79,182.85,182.84,67.13438214]
[1761862567460,0.79,182.85,182.84,61.7]
[1761862567461,6.25896363,182.85,182.84,61.7]
[1761862567764,6.25896363,182.85,182.81,3.24194059]
[1761862567957,4.77908208,182.84,182.81,3.24194059]
[1761862568181,4.77908208,182.84,182.83,3.24194059]
[1761862568463,0.1,182.85,182.83,3.24194059]
[1761862568663,0.79,182.85,182.84,3.24194059]
[1761862568867,4.87985049,182.85,182.84,3.24194059]
[1761862569250,10.34881412,182.85,182.84,3.24194059]
[1761862569556,10.34881412,182.85,182.83,3.24194059]
[1761862569760,4.78009792,182.84,182.75,5.47188353]
[1761862570063,4.78009792,182.84,182.79,3.24194059]
[1761862570064,4.09009792,182.83,182.79,3.24194059]
[1761862570269,4.09009792,182.82,182.8,3.24194059]
[1761862570444,4.09009792,182.81,182.8,3.24194059]
[1761862570646,4.78009792,182.81,182.8,3.24194059]
[1761862570959,10.25025819,182.81,182.8,3.24194059]
[1761862573050,6.16016027,182.81,182.8,3.24194059]
[1761862573249,10.25132774,182.81,182.8,3.24194059]
[1761862573444,10.25132774,182.81,182.79,3.24194059]
[1761862573650,0.69,182.8,182.79,3.24194059]
[1761862573850,0.69,182.8,182.78,3.24194059]
[1761862574051,4.78103445,182.8,182.78,3.24194059]
[1761862574383,0.69,182.8,182.79,3.24194059]
[1761862574559,9.56009025,182.84,182.79,3.24194059]
[1761862574876,0.69,182.8,182.77,13.67384096]
[1761862576253,0.69,182.8,182.79,2.07143491]
[1761862578347,0.69,182.8,182.77,13.67384096]
[1761862578348,6.16045951,182.8,182.77,13.67384096]
[1761862578553,6.16045951,182.8,182.75,2.07143491]
[1761862578776,0.72,182.79,182.77,2.07143491]
[1761862578962,6.19024057,182.81,182.78,2.07143491]
[1761862579172,4.81113279,182.8,182.78,2.07143491]
[1761862579366,0.72,182.79,182.78,2.07143491]
[1761862579674,4.81113279,182.8,182.78,2.07143491]
[1761862579969,4.09113279,182.8,182.78,2.07143491]
[1761862580157,0.72,182.79,182.78,2.07143491]
[1761862581482,6.19075879,182.79,182.77,2.07143491]
[1761862581650,0.72,182.78,182.77,2.07143491]
[1761862582178,0.82,182.85,182.79,20.592]
[1761862582357,0.82,182.85,182.84,2.07143491]
[1761862582358,0.1,182.85,182.84,2.07143491]
[1761862582558,0.82,182.85,182.84,2.07143491]
[1761862583187,4.90939729,182.85,182.84,2.07143491]
[1761862583477,10.37836092,182.85,182.83,2.07143491]
[1761862583676,0.72,182.84,182.82,5.56837045]
[1761862585175,5.56896363,182.85,182.82,5.56837045]
[1761862585176,0.1,182.85,182.82,5.56837045]
[1761862585382,0.72,182.84,182.82,5.56837045]
[1761862588270,0.1,182.85,182.82,11.03822675]
[1761862588781,0.81,182.85,182.82,11.03822675]
[1761862588980,0.81,182.85,182.82,5.56837045]
[1761862590697,0.1,182.85,182.82,11.728089]
[1761862590877,0.1,182.85,182.84,2.07143491]
[1761862591270,0.1,182.85,182.84,8.34980637]
[1761862591902,0.1,182.86,182.84,70.73980637]
[1761862592068,0.1,182.86,182.85,2.07143491]
[1761862593067,0.81,182.86,182.85,2.07143491]
[1761862594280,6.27866455,182.86,182.85,2.07143491]
[1761862595673,6.27866455,182.86,182.84,6.27837146]
[1761862595875,0.71,182.85,182.84,2.07143491]
[1761862596269,0.71,182.85,182.83,13.7694592]
[1761862596503,0.71,182.85,182.84,2.07143491]
[1761862596968,0.71,182.85,182.83,13.7694592]
[1761862596969,6.1790285,182.85,182.83,15.84089411]
[1761862597168,6.1790285,182.85,182.82,2.07143491]
[1761862597370,0.71,182.84,182.82,2.07143491]
[1761862597584,4.79827202,182.84,182.81,15.84240865]
[1761862597792,4.79827202,182.84,182.81,13.77097374]
[1761862597993,0.71,182.83,182.8,2.07143491]
[1761862598288,0.71,182.83,182.8,18.52105793]
[1761862598877,6.17973038,182.83,182.8,18.52105793]
[1761862599290,0.71,182.82,182.8,18.52105793]
[1761862599491,0.71,182.82,182.81,2.07143491]
[1761862604210,6.17986106,182.82,182.81,13.67240907]
[1761862604502,10.26950445,182.82,182.8,2.07143491]
[1761862604808,0.71,182.81,182.8,17.81527889]
[1761862605280,0.71,182.81,182.79,2.07143491]
[1761862605483,5.47045951,182.8,182.79,2.07143491]
[1761862605792,5.47045951,182.8,182.79,13.67240907]
[1761862605981,6.18045951,182.8,182.79,15.74384398]
[1761862606591,0.71,182.8,182.79,15.74384398]
[1761862607902,6.18045951,182.8,182.79,15.74384398]
[1761862608280,0.71,182.8,182.79,15.74384398]
[1761862608806,6.18045951,182.8,182.79,15.74384398]
[1761862609695,6.18045951,182.8,182.79,13.67240907]
[1761862611188,6.18045951,182.8,182.77,2.07143491]
[1761862611390,0.71,182.79,182.77,15.74607501]
[1761862612100,0.71,182.79,182.77,13.6746401]